fUSD/lending_fUSD_20240714
["ID","MTS","AMOUNT","RATE_DAILY","PERIOD"]
[332070457,1720949437493,-500.0,0.00013698,2]
[332070458,1720949437503,-500.0,0.00013698,2]
[332070459,1720949437512,-500.0,0.00013698,2]
[332070460,1720949437521,-700.07,0.00013698,2]
[332070461,1720949437530,-500.0,0.00013698,2]
[332070462,1720949437539,-698.16,0.00013698,2]
[332070463,1720949437549,-1266.7,0.00013698,2]
[332070464,1720949437558,-537.45,0.00013698,2]
[332070465,1720949437568,-500.0,0.00013698,2]
[332070466,1720949437577,-688.87,0.00013698,2]
[332070467,1720949437586,-947.61,0.00013698,2]
[332070468,1720949437595,-500.0,0.00013698,2]
[332070469,1720949437604,-1478.0,0.00013698,2]
[332070470,1720949437613,-2574.51,0.00013698,2]
[332070471,1720949437623,-500.0,0.00013698,2]
[332070472,1720949437632,-1009.89,0.00013698,2]
[332070473,1720949437642,-500.0,0.00013698,2]
[332070474,1720949437651,-661.24,0.00013698,2]
[332070475,1720949437660,-734.64,0.00013698,2]
[332070476,1720949437670,-860.01,0.00013698,2]
[332070477,1720949437679,-500.0,0.00013698,2]
[332070478,1720949437688,-865.51,0.00013698,2]
[332070479,1720949437698,-500.0,0.00013698,2]
[332070480,1720949437707,-844.87,0.00013698,2]
[332070481,1720949437716,-1032.14,0.00013698,2]
[332070482,1720949437725,-743.71,0.00013698,2]
[332070483,1720949437735,-62.39188169,0.00013698,2]
[332070484,1720949437760,-437.60811831,0.00013698,2]
[332070485,1720949437769,-873.42,0.00013698,2]
[332070486,1720949437779,-500.0,0.00013698,2]
[332070487,1720949437787,-941.7361522,0.00013698,2]
[332070488,1720949437822,-506.58096069,0.00013698,2]
[332070489,1720949437843,-781.03258899,0.00013698,2]
[332070501,1720949438842,-1925.25072804,0.00011098,7]
[332070502,1720949438852,-944.87029812,0.00013698,2]
[332070503,1720949438861,-500.0,0.00013698,2]
[332070504,1720949438871,-500.0,0.00013698,2]
[332070505,1720949438881,-771.85,0.00013698,2]
[332070506,1720949438891,-907.38,0.00013698,2]
[332070507,1720949438900,-644.42,0.00013698,2]
[332070508,1720949438910,-574.87,0.00013698,2]
[332070509,1720949438919,-555.54,0.00013698,2]
[332070510,1720949438929,-1212.17,0.00013698,2]
[332070511,1720949438939,-3544.38,0.00013698,2]
[332070512,1720949438948,-568.8,0.00013698,2]
[332070513,1720949438957,-677.99,0.00013698,2]
[332070514,1720949438968,-500.0,0.00013698,2]
[332070515,1720949438977,-1263.23,0.00013698,2]
[332070516,1720949438987,-97.33246384,0.00013698,2]
[332070517,1720949439000,-402.66753616,0.00013698,2]
[332070518,1720949439008,-500.0,0.00013698,2]
[332070519,1720949439017,-271.83211978,0.00013698,2]
[332070520,1720949439029,-228.16788022,0.00013698,2]
[332070521,1720949439039,-396.83511978,0.00013698,2]
[332070522,1720949439051,-1583.68488022,0.00013698,2]
[332070523,1720949439060,-867.08475192,0.00013698,2]
[332070524,1720949439136,-262.43283597,0.00013698,2]
[332070640,1720949440401,-161.96241211,0.00013698,2]
[332070643,1720949440411,-500.0,0.00013698,2]
[332070646,1720949440420,-57.30522226,0.00013698,2]
[332070650,1720949440432,-687.71477774,0.00013698,2]
[332070653,1720949440441,-843.89971238,0.00013698,2]
[332070663,1720949440492,-889.83028762,0.00013698,2]
[332070665,1720949440502,-503.56,0.00013698,2]
[332070667,1720949440512,-1645.77,0.00013698,2]
[332070669,1720949440522,-500.0,0.00013698,2]
[332070671,1720949440531,-1521.46701441,0.00013698,2]
[332070684,1720949440642,-13.45298559,0.00013698,2]
[332070686,1720949440652,-1614.36,0.00013698,2]
[332070688,1720949440661,-500.0,0.00013698,2]
[332070690,1720949440670,-576.93,0.00013698,2]
[332070692,1720949440681,-500.0,0.00013698,2]
[332070694,1720949440690,-500.0,0.00013698,2]
[332070696,1720949440700,-1050.13,0.00013698,2]
[332070698,1720949440711,-2780.44,0.00013698,2]
[332070700,1720949440721,-500.0,0.00013698,2]
[332070702,1720949440731,-746.5,0.00013698,2]
[332070704,1720949440742,-1206.87,0.00013698,2]
[332070706,1720949440752,-500.0,0.00013698,2]
[332070708,1720949440762,-500.0,0.00013698,2]
[332070710,1720949440772,-500.0,0.00013698,2]
[332070713,1720949440783,-1000.34,0.00013698,2]
[332070715,1720949440794,-916.52,0.00013698,2]
[332070717,1720949440805,-839.45,0.00013698,2]
[332070719,1720949440815,-500.0,0.00013698,2]
[332070721,1720949440825,-501.45,0.00013698,2]
[332070723,1720949440834,-6230.81,0.00013698,2]
[332070725,1720949440844,-1208.23,0.00013698,2]
[332070727,1720949440853,-863.34,0.00013698,2]
[332070729,1720949440863,-529.59,0.00013698,2]
[332070731,1720949440872,-500.0,0.00013698,2]
[332070733,1720949440881,-500.0,0.00013698,2]
[332070735,1720949440893,-816.73,0.00013698,2]
[332070737,1720949440902,-525.1,0.00013698,2]
[332070739,1720949440912,-832.14,0.00013698,2]
[332070741,1720949440921,-1298.36,0.00013698,2]
[332070743,1720949440932,-500.0,0.00013698,2]
[332070745,1720949440942,-500.0,0.00013698,2]
[332070747,1720949440951,-4358.16,0.00013698,2]
[332070749,1720949440961,-643.13,0.00013698,2]
[332070751,1720949440971,-941.85,0.00013698,2]
[332070753,1720949440983,-997.63,0.00013698,2]
[332070755,1720949440992,-500.0,0.00013698,2]
[332070757,1720949441002,-500.0,0.00013698,2]
[332070759,1720949441011,-500.0,0.00013698,2]
[332070761,1720949441020,-819.68,0.00013698,2]
[332070763,1720949441031,-1203.92,0.00013698,2]
[332070765,1720949441040,-500.0,0.00013698,2]
[332070767,1720949441050,-500.0,0.00013698,2]
[332070769,1720949441059,-500.0,0.00013698,2]
[332070771,1720949441068,-1492.53,0.00013698,2]
[332070773,1720949441077,-1137.55,0.00013698,2]
[332070775,1720949441087,-692.66,0.00013698,2]
[332070778,1720949441096,-500.0,0.00013698,2]
[332070781,1720949441105,-500.0,0.00013698,2]
[332070783,1720949441115,-978.78,0.00013698,2]
[332070785,1720949441124,-790.24,0.00013698,2]
[332070787,1720949441134,-1579.15,0.00013698,2]
[332070789,1720949441143,-1035.56,0.00013698,2]
[332070791,1720949441152,-500.0,0.00013698,2]
[332070793,1720949441161,-575.13,0.00013698,2]
[332070795,1720949441170,-599.64,0.00013698,2]
[332070797,1720949441180,-500.0,0.00013698,2]
[332070799,1720949441190,-500.0,0.00013698,2]
[332070801,1720949441204,-750.61,0.00013698,2]
[332070803,1720949441216,-500.0,0.00013698,2]
[332070805,1720949441227,-179.88,0.00013699,2]
[332070807,1720949441238,-660.32,0.00013699,2]
[332070809,1720949441252,-456.93628648,0.00013699,2]
[332070811,1720949441261,-150.0,0.00013707,2]
[332070813,1720949441271,-1000.0,0.00013708,2]
[332070815,1720949441284,-164.58586384,0.00013708,2]
[332070817,1720949441294,-150.0,0.00013714,2]
[332070819,1720949441304,-150.0,0.00013718,2]
[332070821,1720949441314,-150.0,0.00013721,2]
[332070823,1720949441324,-150.0,0.00013723,2]
[332070825,1720949441334,-150.0,0.00013724,2]
[332070827,1720949441343,-150.0,0.00013724,2]
[332070829,1720949441352,-150.0,0.00013726,2]
[332070831,1720949441361,-150.0,0.0001373,2]
[332070833,1720949441371,-456.93628648,0.00013733,2]
[332070835,1720949441381,-2097.12646594,0.00013736,2]
[332070836,1720949441390,-300.0,0.00013736,2]
[332070838,1720949441399,-150.0,0.00013739,2]
[332070840,1720949441408,-150.0,0.0001374,2]
[332070842,1720949441417,-171.29908894,0.00013741,2]
[332070844,1720949441426,-332.95704489,0.00013743,2]
[332070846,1720949441435,-500.0,0.00013752,2]
[332070848,1720949441444,-500.0,0.00013752,2]
[332070850,1720949441453,-600.45,0.00013752,2]
[332070852,1720949441463,-500.0,0.00013752,2]
[332070854,1720949441472,-500.0,0.00013752,2]
[332070856,1720949441482,-500.0,0.00013752,2]
[332070858,1720949441491,-500.0,0.00013752,2]
[332070860,1720949441501,-500.0,0.00013752,2]
[332070862,1720949441510,-500.0,0.00013752,2]
[332070864,1720949441519,-500.0,0.00013752,2]
[332070866,1720949441530,-736.69,0.00013752,2]
[332070868,1720949441539,-500.0,0.00013752,2]
[332070870,1720949441548,-500.0,0.00013752,2]
[332070872,1720949441557,-813.4,0.00013752,2]
[332070874,1720949441567,-500.0,0.00013752,2]
[332070876,1720949441576,-762.08,0.00013752,2]
[332070878,1720949441585,-500.0,0.00013752,2]
[332070879,1720949441594,-504.50882317,0.00013752,2]
[332070880,1720949441603,-500.0,0.00013752,2]
[332070881,1720949441612,-462.28310575,0.00013752,2]
[332070882,1720949441621,-500.0,0.00013752,2]
[332070883,1720949441631,-500.0,0.00013752,2]
[332070884,1720949441641,-500.0,0.00013752,2]
[332070885,1720949441651,-500.0,0.00013752,2]
[332070886,1720949441661,-500.0,0.00013752,2]
[332070887,1720949441670,-500.0,0.00013752,2]
[332070889,1720949441680,-500.0,0.00013752,2]
[332070891,1720949441690,-515.17,0.00013752,2]
[332070893,1720949441701,-599.65960364,0.00013752,2]
[332070895,1720949441710,-500.0,0.00013752,2]
[332070897,1720949441721,-500.0,0.00013752,2]
[332070899,1720949441731,-757.92,0.00013752,2]
[332070901,1720949441741,-500.0,0.00013752,2]
[332070903,1720949441751,-500.0,0.00013752,2]
[332070905,1720949441760,-500.0,0.00013752,2]
[332070907,1720949441770,-500.0,0.00013752,2]
[332070909,1720949441779,-500.0,0.00013752,2]
[332070911,1720949441788,-500.0,0.00013752,2]
[332070913,1720949441797,-500.0,0.00013752,2]
[332070915,1720949441806,-500.0,0.00013752,2]
[332070917,1720949441815,-500.0,0.00013752,2]
[332070919,1720949441825,-500.0,0.00013752,2]
[332070921,1720949441834,-655.54,0.00013752,2]
[332070923,1720949441846,-806.75,0.00013752,2]
[332070926,1720949441856,-500.0,0.00013752,2]
[332070928,1720949441867,-500.0,0.00013752,2]
[332070930,1720949441876,-500.0,0.00013752,2]
[332070932,1720949441886,-500.0,0.00013752,2]
[332070934,1720949441895,-500.0,0.00013752,2]
[332070935,1720949441905,-500.0,0.00013752,2]
[332070937,1720949441914,-792.72,0.00013752,2]
[332070939,1720949441924,-531.3,0.00013752,2]
[332070941,1720949441933,-500.0,0.00013752,2]
[332070943,1720949441942,-500.0,0.00013752,2]
[332070945,1720949441951,-500.0,0.00013752,2]
[332070947,1720949441961,-500.0,0.00013752,2]
[332070949,1720949441972,-500.0,0.00013752,2]
[332070951,1720949441982,-500.0,0.00013752,2]
[332070953,1720949441991,-500.0,0.00013752,2]
[332070955,1720949442004,-500.0,0.00013752,2]
[332070957,1720949442013,-651.13,0.00013752,2]
[332070959,1720949442023,-500.0,0.00013752,2]
[332070961,1720949442034,-522.77,0.00013752,2]
[332070963,1720949442044,-500.0,0.00013752,2]
[332070965,1720949442054,-500.0,0.00013752,2]
[332070967,1720949442064,-500.0,0.00013752,2]
[332070969,1720949442073,-500.0,0.00013752,2]
[332070971,1720949442083,-500.0,0.00013752,2]
[332070973,1720949442092,-734.27,0.00013752,2]
[332070975,1720949442102,-500.0,0.00013752,2]
[332070977,1720949442112,-500.0,0.00013752,2]
[332070979,1720949442121,-500.0,0.00013752,2]
[332070980,1720949442131,-782.72,0.00013752,2]
[332070982,1720949442140,-500.0,0.00013752,2]
[332070984,1720949442149,-500.0,0.00013752,2]
[332070986,1720949442159,-500.0,0.00013752,2]
[332070988,1720949442168,-645.47,0.00013752,2]
[332070990,1720949442177,-659.66,0.00013752,2]
[332070992,1720949442186,-500.0,0.00013752,2]
[332070994,1720949442196,-500.0,0.00013752,2]
[332070996,1720949442210,-500.0,0.00013752,2]
[332070998,1720949442219,-500.0,0.00013752,2]
[332071000,1720949442228,-500.0,0.00013752,2]
[332071002,1720949442237,-500.0,0.00013752,2]
[332071004,1720949442250,-500.0,0.00013752,2]
[332071006,1720949442259,-500.0,0.00013752,2]
[332071008,1720949442268,-871.17,0.00013752,2]
[332071010,1720949442278,-634.12,0.00013752,2]
[332071012,1720949442288,-500.0,0.00013752,2]
[332071014,1720949442297,-500.0,0.00013752,2]
[332071016,1720949442307,-528.94,0.00013752,2]
[332071018,1720949442318,-500.0,0.00013752,2]
[332071020,1720949442329,-500.0,0.00013752,2]
[332071022,1720949442339,-500.0,0.00013752,2]
[332071024,1720949442349,-500.0,0.00013752,2]
[332071026,1720949442358,-500.0,0.00013752,2]
[332071028,1720949442367,-500.0,0.00013752,2]
[332071030,1720949442377,-737.71,0.00013752,2]
[332071032,1720949442386,-500.0,0.00013752,2]
[332071034,1720949442395,-574.55,0.00013752,2]
[332071036,1720949442403,-500.0,0.00013752,2]
[332071038,1720949442413,-690.52,0.00013752,2]
[332071040,1720949442422,-200.0,0.00013752,7]
[332071042,1720949442431,-500.0,0.00013752,2]
[332071044,1720949442440,-500.0,0.00013752,2]
[332071046,1720949442450,-500.0,0.00013752,2]
[332071048,1720949442459,-593.74,0.00013752,2]
[332071050,1720949442468,-500.0,0.00013752,2]
[332071052,1720949442477,-500.0,0.00013752,2]
[332071054,1720949442486,-500.0,0.00013752,2]
[332071056,1720949442495,-500.0,0.00013752,2]
[332071058,1720949442505,-500.0,0.00013752,2]
[332071060,1720949442514,-500.0,0.00013752,2]
[332071062,1720949442523,-500.0,0.00013752,2]
[332071064,1720949442533,-1024.52,0.00013752,2]
[332071066,1720949442542,-500.0,0.00013752,2]
[332071068,1720949442551,-500.0,0.00013752,2]
[332071070,1720949442560,-500.0,0.00013752,2]
[332071072,1720949442569,-662.049282,0.00013752,2]
[332071116,1720949442972,-76.480718,0.00013752,2]
[332071118,1720949442982,-734.24,0.00013752,2]
[332071119,1720949442991,-500.0,0.00013752,2]
[332071121,1720949443002,-682.49,0.00013752,2]
[332071123,1720949443011,-547.98,0.00013752,2]
[332071125,1720949443020,-500.0,0.00013752,2]
[332071127,1720949443029,-1027.85,0.00013752,2]
[332071128,1720949443038,-500.0,0.00013752,2]
[332071130,1720949443047,-500.0,0.00013752,2]
[332071132,1720949443056,-500.0,0.00013752,2]
[332071134,1720949443065,-729.26,0.00013752,2]
[332071136,1720949443075,-500.0,0.00013752,2]
[332071139,1720949443085,-500.0,0.00013752,2]
[332071141,1720949443094,-500.0,0.00013752,2]
[332071143,1720949443103,-500.0,0.00013752,2]
[332071145,1720949443113,-500.0,0.00013752,2]
[332071147,1720949443122,-500.0,0.00013752,2]
[332071149,1720949443131,-520.95,0.00013752,2]
[332071151,1720949443141,-512.84,0.00013752,2]
[332071153,1720949443151,-500.0,0.00013752,2]
[332071155,1720949443160,-500.0,0.00013752,2]
[332071157,1720949443169,-551.93,0.00013752,2]
[332071159,1720949443179,-500.0,0.00013752,2]
[332071161,1720949443188,-872.73,0.00013752,2]
[332071163,1720949443198,-441.98482157,0.00013752,2]
[332071165,1720949443211,-500.0,0.00013752,2]
[332071167,1720949443221,-500.0,0.00013752,2]
[332071169,1720949443230,-500.0,0.00013752,2]
[332071171,1720949443239,-500.0,0.00013752,2]
[332071173,1720949443251,-573.92,0.00013752,2]
[332071175,1720949443260,-1094.69,0.00013752,2]
[332071177,1720949443269,-500.0,0.00013752,2]
[332071179,1720949443281,-500.0,0.00013752,2]
[332071181,1720949443290,-500.0,0.00013752,2]
[332071183,1720949443299,-500.0,0.00013752,2]
[332071186,1720949443309,-578.9728369,0.00013752,2]
[332071189,1720949443318,-500.0,0.00013752,2]
[332071193,1720949443328,-500.0,0.00013752,2]
[332071195,1720949443337,-500.0,0.00013752,2]
[332071197,1720949443346,-500.0,0.00013752,2]
[332071199,1720949443355,-829.94,0.00013752,2]
[332071200,1720949443364,-500.0,0.00013752,2]
[332071202,1720949443373,-500.0,0.00013752,2]
[332071203,1720949443382,-500.0,0.00013752,2]
[332071206,1720949443391,-500.0,0.00013752,2]
[332071209,1720949443401,-500.0,0.00013752,2]
[332071213,1720949443412,-639.19264411,0.00013752,2]
[332071216,1720949443421,-500.0,0.00013752,2]
[332071220,1720949443431,-500.0,0.00013752,2]
[332071224,1720949443440,-571.03,0.00013752,2]
[332071227,1720949443449,-500.0,0.00013752,2]
[332071230,1720949443459,-523.02,0.00013752,2]
[332071233,1720949443468,-500.0,0.00013752,2]
[332071235,1720949443477,-500.0,0.00013752,2]
[332071237,1720949443486,-304.631676,0.00013752,2]
[332071239,1720949443495,-500.0,0.00013752,2]
[332071241,1720949443504,-606.06,0.00013752,2]
[332071243,1720949443513,-500.0,0.00013752,2]
[332071257,1720949443647,-537.0,0.00013752,2]
[332071259,1720949443660,-673.29,0.00013752,2]
[332071261,1720949443669,-500.0,0.00013752,2]
[332071263,1720949443678,-145.66660084,0.00013752,2]
[332071278,1720949443814,-513.43,0.00013698,2]
[332071280,1720949443823,-55.08573474,0.00013752,2]
[332071283,1720949443835,-299.24766442,0.00013752,2]
[332071285,1720949443845,-500.0,0.00013752,2]
[332071287,1720949443855,-288.53548874,0.00013752,2]
[332071289,1720949443873,-168.33841338,0.00013752,2]
[332071291,1720949443883,-500.0,0.00013752,2]
[332071293,1720949443892,-500.0,0.00013752,2]
[332071295,1720949443901,-500.0,0.00013752,2]
[332071297,1720949443911,-460.2875,0.00013752,2]
[332071299,1720949443920,-500.0,0.00013752,2]
[332071301,1720949443930,-500.0,0.00013752,2]
[332071303,1720949443939,-528.85,0.00013752,2]
[332071305,1720949443949,-500.0,0.00013752,2]
[332071306,1720949443958,-47.15867905,0.00013752,2]
[332071307,1720949443980,-1156.89132095,0.00013752,2]
[332071308,1720949443990,-500.0,0.00013752,2]
[332071309,1720949444001,-856.1,0.00013752,2]
[332071310,1720949444010,-519.38,0.00013752,2]
[332071311,1720949444020,-1153.06,0.00013752,2]
[332071313,1720949444029,-500.0,0.00013752,2]
[332071315,1720949444039,-500.0,0.00013752,2]
[332071317,1720949444049,-715.76,0.00013752,2]
[332071319,1720949444058,-500.0,0.00013752,2]
[332071322,1720949444068,-623.99,0.00013752,2]
[332071325,1720949444077,-500.0,0.00013752,2]
[332071328,1720949444087,-500.0,0.00013752,2]
[332071331,1720949444096,-500.0,0.00013752,2]
[332071335,1720949444106,-736.52,0.00013752,2]
[332071337,1720949444115,-995.51,0.00013752,2]
[332071340,1720949444124,-500.0,0.00013752,2]
[332071342,1720949444134,-500.0,0.00013752,2]
[332071344,1720949444143,-500.0,0.00013752,2]
[332071346,1720949444153,-500.0,0.00013752,2]
[332071348,1720949444163,-500.0,0.00013752,2]
[332071350,1720949444172,-264.4,0.00013752,2]
[332071352,1720949444181,-366.84,0.00013752,2]
[332071354,1720949444191,-639.37,0.00013752,2]
[332071356,1720949444200,-808.84,0.00013752,2]
[332071358,1720949444216,-584.17,0.00013752,2]
[332071360,1720949444225,-500.0,0.00013752,2]
[332071362,1720949444235,-500.0,0.00013752,2]
[332071364,1720949444244,-500.0,0.00013752,2]
[332071366,1720949444255,-500.0,0.00013752,2]
[332071368,1720949444264,-500.0,0.00013752,2]
[332071370,1720949444274,-500.0,0.00013752,2]
[332071372,1720949444285,-500.0,0.00013752,2]
[332071374,1720949444295,-500.0,0.00013752,2]
[332071376,1720949444304,-657.04,0.00013752,2]
[332071378,1720949444313,-500.0,0.00013753,2]
[332071380,1720949444323,-500.0,0.00013753,2]
[332071382,1720949444332,-500.0,0.00013753,2]
[332071384,1720949444342,-500.0,0.00013753,2]
[332071386,1720949444351,-500.0,0.00013753,2]
[332071388,1720949444360,-500.0,0.00013753,2]
[332071390,1720949444369,-212.14848873,0.00013753,2]
[332071392,1720949444378,-535.94,0.00013753,2]
[332071394,1720949444388,-950.61,0.00013753,2]
[332071396,1720949444398,-391.22114899,0.00013753,2]
[332071398,1720949444407,-500.0,0.00013753,2]
[332071400,1720949444416,-550.04,0.00013753,2]
[332071402,1720949444426,-500.0,0.00013753,2]
[332071404,1720949444436,-500.0,0.00013753,2]
[332071406,1720949444446,-500.0,0.00013753,2]
[332071408,1720949444455,-500.0,0.00013753,2]
[332071410,1720949444465,-500.0,0.00013753,2]
[332071412,1720949444475,-605.89,0.00013753,2]
[332071414,1720949444484,-500.0,0.00013753,2]
[332071416,1720949444494,-504.73,0.00013753,2]
[332071418,1720949444505,-500.0,0.00013753,2]
[332071420,1720949444514,-527.08,0.00013753,2]
[332071422,1720949444524,-761.77,0.00013753,2]
[332071424,1720949444534,-500.0,0.00013753,2]
[332071426,1720949444543,-549.0,0.00013753,2]
[332071428,1720949444553,-500.0,0.00013753,2]
[332071430,1720949444562,-500.0,0.00013753,2]
[332071432,1720949444572,-500.0,0.00013753,2]
[332071434,1720949444581,-500.0,0.00013753,2]
[332071436,1720949444591,-500.0,0.00013753,2]
[332071438,1720949444600,-500.0,0.00013753,2]
[332071440,1720949444610,-500.0,0.00013753,2]
[332071442,1720949444619,-500.0,0.00013753,2]
[332071444,1720949444629,-500.0,0.00013753,2]
[332071446,1720949444638,-500.0,0.00013753,2]
[332071448,1720949444648,-500.0,0.00013753,2]
[332071450,1720949444657,-500.0,0.00013753,2]
[332071452,1720949444667,-643.01,0.00013753,2]
[332071454,1720949444678,-500.0,0.00013753,2]
[332071456,1720949444688,-500.0,0.00013753,2]
[332071458,1720949444697,-500.0,0.00013753,2]
[332071460,1720949444707,-500.0,0.00013753,2]
[332071462,1720949444716,-500.0,0.00013753,2]
[332071464,1720949444726,-500.0,0.00013753,2]
[332071466,1720949444736,-673.11,0.00013753,2]
[332071468,1720949444745,-588.19,0.00013753,2]
[332071470,1720949444757,-500.0,0.00013753,2]
[332071472,1720949444767,-200.0,0.00013753,2]
[332071474,1720949444780,-500.0,0.00013753,2]
[332071476,1720949444790,-912.46,0.00013753,2]
[332071478,1720949444799,-535.63,0.00013753,2]
[332071480,1720949444809,-553.66,0.00013753,2]
[332071482,1720949444818,-1321.77,0.00013753,2]
[332071484,1720949444828,-500.0,0.00013753,2]
[332071486,1720949444838,-500.0,0.00013753,2]
[332071488,1720949444848,-500.0,0.00013753,2]
[332071490,1720949444858,-500.0,0.00013753,2]
[332071492,1720949444868,-882.28,0.00013753,2]
[332071494,1720949444877,-500.0,0.00013753,2]
[332071496,1720949444887,-1521.28,0.00013753,2]
[332071498,1720949444896,-500.0,0.00013753,2]
[332071500,1720949444906,-1291.12,0.00013753,2]
[332071502,1720949444916,-576.09,0.00013753,2]
[332071504,1720949444925,-1151.23,0.00013753,2]
[332071506,1720949444935,-500.0,0.00013753,2]
[332071508,1720949444944,-1385.73,0.00013753,2]
[332071510,1720949444953,-1048.18,0.00013753,2]
[332071512,1720949444963,-322.97397131,0.00013753,2]
[332071514,1720949444975,-790.79,0.00013753,2]
[332071516,1720949444985,-500.0,0.00013753,2]
[332071518,1720949444994,-869.38,0.00013753,2]
[332071520,1720949445005,-682.66,0.00013753,2]
[332071522,1720949445014,-791.39,0.00013753,2]
[332071524,1720949445023,-1662.92,0.00013753,2]
[332071526,1720949445033,-500.0,0.00013753,2]
[332071528,1720949445042,-500.0,0.00013753,2]
[332071530,1720949445052,-1414.2,0.00013753,2]
[332071532,1720949445062,-500.0,0.00013753,2]
[332071534,1720949445071,-902.64,0.00013753,2]
[332071536,1720949445081,-942.88,0.00013753,2]
[332071538,1720949445091,-500.0,0.00013753,2]
[332071540,1720949445101,-500.0,0.00013753,2]
[332071542,1720949445111,-1165.23,0.00013753,2]
[332071544,1720949445121,-500.0,0.00013753,2]
[332071546,1720949445130,-500.0,0.00013753,2]
[332071548,1720949445140,-500.0,0.00013753,2]
[332071550,1720949445150,-988.1,0.00013753,2]
[332071552,1720949445159,-562.18,0.00013753,2]
[332071554,1720949445169,-500.0,0.00013753,2]
[332071556,1720949445179,-974.98,0.00013753,2]
[332071559,1720949445189,-500.0,0.00013753,2]
[332071560,1720949445198,-500.0,0.00013753,2]
[332071562,1720949445212,-518.85,0.00013753,2]
[332071565,1720949445221,-624.79,0.00013753,2]
[332071566,1720949445231,-1023.42,0.00013753,2]
[332071569,1720949445240,-1126.21,0.00013753,2]
[332071571,1720949445252,-828.14,0.00013753,2]
[332071573,1720949445262,-835.56,0.00013753,2]
[332071574,1720949445273,-500.0,0.00013753,2]
[332071577,1720949445283,-681.23,0.00013753,2]
[332071579,1720949445293,-500.0,0.00013753,2]
[332071581,1720949445302,-632.55,0.00013753,2]
[332071582,1720949445311,-500.0,0.00013753,2]
[332071584,1720949445320,-1300.55,0.00013753,2]
[332071586,1720949445330,-1279.47,0.00013753,2]
[332071588,1720949445339,-1105.72,0.00013753,2]
[332071591,1720949445349,-615.79745992,0.00013753,2]
[332071593,1720949445359,-500.0,0.00013753,2]
[332071595,1720949445369,-599.57,0.00013753,2]
[332071597,1720949445378,-986.55,0.00013753,2]
[332071599,1720949445388,-1268.32,0.00013753,2]
[332071601,1720949445399,-500.0,0.00013753,2]
[332071603,1720949445408,-500.0,0.00013753,2]
[332071605,1720949445418,-500.0,0.00013753,2]
[332071607,1720949445428,-500.0,0.00013753,2]
[332071609,1720949445437,-500.0,0.00013753,2]
[332071611,1720949445447,-764.42,0.00013753,2]
[332071613,1720949445456,-1454.13,0.00013753,2]
[332071615,1720949445465,-831.75,0.00013753,2]
[332071617,1720949445475,-1568.06,0.00013753,2]
[332071619,1720949445485,-500.0,0.00013753,2]
[332071621,1720949445494,-840.12,0.00013753,2]
[332071623,1720949445505,-1006.73,0.00013753,2]